bitfinex/quotes_SOLUSD_20250819
["timestamp","ask_amount","ask_price","bid_price","bid_amount"]
[1755589116829,0.86,179.85,179.84,80.62621557]
[1755589117235,0.86,179.85,179.84,90.10826686]
[1755589117415,0.2,179.85,179.84,90.10826686]
[1755589117620,0.2,179.85,179.84,95.66876508]
[1755589118030,0.2,179.85,179.84,96.32876508]
[1755589120452,0.2,179.85,179.84,95.66876508]
[1755589120618,0.9,179.85,179.84,80.60621557]
[1755589120948,0.2,179.85,179.84,90.08826686]
[1755589121124,0.2,179.85,179.84,95.64876508]
[1755589121444,0.2,179.85,179.84,105.79081608]
[1755589121646,0.2,179.85,179.84,96.30876479]
[1755589121841,0.2,179.85,179.84,105.79081608]
[1755589122336,0.7,179.92,179.89,15.10621557]
[1755589122541,0.7,179.94,179.91,24.58826686]
[1755589122739,0.7,179.94,179.93,15.10621557]
[1755589123052,0.7,179.93,179.9,26.0]
[1755589123216,9.48205129,179.94,179.91,54.64621557]
[1755589123217,0.7,179.92,179.91,54.64621557]
[1755589123416,0.7,179.92,179.91,54.68621557]
[1755589123613,10.18205129,179.92,179.91,54.68621557]
[1755589123840,10.18205129,179.92,179.84,9.482051]
[1755589124024,9.48205129,179.89,179.86,26.0]
[1755589124221,26.0,179.99,179.88,15.10621557]
[1755589124426,10.24311045,180.0,179.89,39.58]
[1755589124635,9.48205129,179.92,179.89,39.58]
[1755589124852,9.48205129,179.9,179.89,39.58]
[1755589125020,10.18205129,179.9,179.89,54.68621557]
[1755589126662,0.03,179.96,179.89,54.68621557]
[1755589126823,9.48205129,179.92,179.89,54.68621557]
[1755589127022,0.7,179.91,179.89,59.37371557]
[1755589127225,0.7,179.9,179.89,59.37371557]
[1755589127444,10.18205129,179.9,179.89,54.68621557]
[1755589127718,0.7,179.9,179.89,54.68621557]
[1755589127925,10.18205129,179.93,179.89,54.68621557]
[1755589128127,0.7,179.92,179.89,54.68621557]
[1755589128860,0.03,179.96,179.9,15.10621557]
[1755589128861,0.7,179.91,179.9,15.10621557]
[1755589129044,10.18205129,179.91,179.9,54.72621557]
[1755589130332,10.18205129,179.91,179.9,39.62]
[1755589130560,10.18205129,179.91,179.88,26.0]
[1755589130561,10.18205129,179.91,179.89,15.10621557]
[1755589130780,10.18205129,179.9,179.86,10.182051]
[1755589130962,0.7,179.89,179.88,15.10621557]
[1755589131124,10.18205129,179.89,179.88,54.72621557]
[1755589131321,10.18205129,179.89,179.88,15.10621557]
[1755589131541,10.18205129,179.89,179.88,54.72621557]
[1755589131741,0.7,179.93,179.89,15.10621557]
[1755589131955,9.51205129,179.94,179.91,15.10621557]
[1755589132160,0.7,179.93,179.92,55.36621557]
[1755589132557,0.03,179.94,179.92,55.36621557]
[1755589132762,0.73,179.94,179.93,15.10621557]
[1755589132944,9.51205129,179.94,179.93,15.10621557]
[1755589133157,0.03,179.94,179.93,15.10621557]
[1755589133657,0.73,179.94,179.93,15.10621557]
[1755589133861,10.21205129,179.94,179.93,15.10621557]
[1755589134371,0.73,179.94,179.93,15.10621557]
[1755589134755,10.21205129,179.94,179.93,15.10621557]
[1755589134950,0.03,179.94,179.93,15.10621557]
[1755589135455,0.03,179.94,179.93,30.14598374]
[1755589135641,0.03,179.94,179.93,21.32393245]
[1755589135854,0.03,179.94,179.93,30.80598374]
[1755589136155,0.03,179.94,179.93,15.10621557]
[1755589136357,0.03,179.94,179.93,21.32393245]
[1755589136568,0.03,179.94,179.93,30.80598374]
[1755589136742,0.03,179.94,179.93,21.32393245]
[1755589137074,0.03,179.94,179.93,15.10621557]
[1755589137840,0.03,179.94,179.93,24.58826686]
[1755589138045,0.03,179.94,179.93,15.76621557]
[1755589138340,0.03,179.94,179.83,0.66]
[1755589138341,9.51205129,179.94,179.83,0.66]
[1755589138546,9.48205129,179.9,179.88,15.10621557]
[1755589138744,9.48205129,179.9,179.89,55.34621557]
[1755589139165,9.48205129,179.91,179.89,55.34621557]
[1755589139363,0.03,179.94,179.9,15.10621557]
[1755589139578,0.7,179.91,179.9,15.10621557]
[1755589139761,0.73,179.94,179.9,55.34621557]
[1755589139962,0.73,179.94,179.92,15.10621557]
[1755589139963,0.03,179.94,179.92,15.10621557]
[1755589140168,0.03,179.94,179.93,40.22]
[1755589140344,10.21205129,179.94,179.9,26.0]
[1755589140548,9.48205129,179.91,179.86,15.10621557]
[1755589140753,0.7,179.93,179.9,15.10621557]
[1755589140976,0.03,179.94,179.92,15.10621557]
[1755589141141,0.03,179.94,179.93,55.36621557]
[1755589141346,9.51205129,179.94,179.93,55.36621557]
[1755589141879,0.03,179.94,179.93,55.36621557]
[1755589142047,9.51205129,179.94,179.93,55.36621557]
[1755589142752,10.21205129,179.94,179.93,55.36621557]
[1755589143551,0.03,179.94,179.93,55.36621557]
[1755589145047,9.51205129,179.94,179.93,55.36621557]
[1755589145568,0.03,179.94,179.93,55.36621557]
[1755589148550,0.03,179.94,179.93,65.52826686]
[1755589148750,0.03,179.94,179.93,71.08598374]
[1755589149772,0.03,179.94,179.93,61.60393245]
[1755589149979,0.03,179.94,179.93,71.08598374]
[1755589155078,1e-08,179.94,179.93,87.78598374]
[1755589156157,1e-08,179.94,179.93,90.01284574]
[1755589158558,1e-08,179.94,179.93,99.13284574]
[1755589160388,1e-08,179.94,179.93,89.65079445]
[1755589160599,0.68000001,179.94,179.93,20.66393245]
[1755589160768,0.68000001,179.94,179.93,15.10621557]
[1755589161082,0.68000001,179.94,179.93,40.02]
[1755589161280,10.1620513,179.94,179.93,40.02]
[1755589161866,0.68000001,179.94,179.93,40.02]
[1755589162099,10.1620513,179.94,179.93,55.12621557]
[1755589162393,10.1620513,179.94,179.93,40.02]
[1755589162597,10.1620513,179.94,179.93,55.12621557]
[1755589162775,0.68000001,179.94,179.93,55.12621557]
[1755589162972,0.68000001,179.94,179.93,55.18621557]
[1755589163383,1e-08,179.94,179.93,55.18621557]
[1755589163584,0.68000001,179.94,179.93,55.18621557]
[1755589163788,1e-08,179.94,179.93,55.18621557]
[1755589164086,1e-08,179.94,179.93,70.90598374]
[1755589164681,1e-08,179.94,179.93,60.70393245]
[1755589165399,1e-08,179.94,179.93,70.86598374]
[1755589165819,1e-08,179.94,179.93,70.18598374]
[1755589166671,1e-08,179.94,179.93,70.86598374]
[1755589166871,1e-08,179.94,179.93,60.70393245]
[1755589167284,1e-08,179.94,179.93,70.18598374]
[1755589167484,1e-08,179.94,179.93,70.86598374]
[1755589167771,1e-08,179.94,179.93,96.86598374]
[1755589167976,1e-08,179.94,179.93,113.56598374]
[1755589168675,1e-08,179.94,179.93,87.56598374]
[1755589168876,1e-08,179.94,179.93,88.12175542]
[1755589169087,0.03,179.96,179.93,65.96]
[1755589169088,1e-08,179.96,179.93,65.96]
[1755589169288,1e-08,179.96,179.95,9.48205129]
[1755589169491,1e-08,179.96,179.95,49.44205129]
[1755589170500,1e-08,179.96,179.95,45.51709919]
[1755589170707,1e-08,179.96,179.95,54.99915048]
[1755589171070,1e-08,179.96,179.95,70.10536605]
[1755589171995,1e-08,179.96,179.95,70.78536605]
[1755589172604,0.03,180.0,179.98,15.10621557]
[1755589172896,1e-08,180.0,179.99,64.56826686]
[1755589173198,0.68000001,180.0,179.99,64.56826686]
[1755589173500,0.68000001,180.0,179.99,55.08621557]
[1755589173696,0.68000001,180.0,179.99,64.56826686]
[1755589173899,0.68000001,180.0,179.99,55.08621557]
[1755589174103,20.1620513,180.0,179.99,39.98]
[1755589174275,20.1620513,180.0,179.99,39.26]
[1755589174482,20.1620513,180.0,179.93,7.784223]
[1755589174483,10.0,179.96,179.9,5.55864369]
[1755589174679,10.0,179.97,179.94,24.58826686]
[1755589175009,10.0,179.97,179.95,40.02]
[1755589175181,10.0,179.98,179.95,40.02]
[1755589175383,10.0,179.98,179.96,9.48205129]
[1755589175687,10.0,179.98,179.97,55.14621557]
[1755589175880,10.0,179.99,179.97,55.14621557]
[1755589176087,10.0,179.98,179.97,55.14621557]
[1755589176503,20.06205129,179.98,179.97,40.04]
[1755589178609,10.0,179.93,179.89,0.06]
[1755589178781,9.48205129,179.9,179.89,0.06]
[1755589178980,19.48205129,179.91,179.89,55.20621557]
[1755589179479,19.48205129,179.9,179.89,0.06]
[1755589179682,20.06205129,179.9,179.89,40.08]
[1755589179899,19.48205129,179.9,179.89,40.08]
[1755589180392,20.06205129,179.9,179.89,40.08]
[1755589181704,29.54410258,179.9,179.89,40.08]
[1755589182018,20.06205129,179.9,179.89,0.06]
[1755589182183,55.54410258,179.9,179.89,0.06]
[1755589182386,46.06205129,179.9,179.89,0.06]
[1755589183318,36.0,179.88,179.87,0.06]
[1755589183497,45.48205129,179.88,179.84,40.04]
[1755589183696,45.48205129,179.88,179.81,0.06]
[1755589183697,10.0,179.82,179.81,0.06]
[1755589183900,19.48205129,179.82,179.81,40.1]
[1755589184307,20.06205129,179.82,179.81,40.1]
[1755589184909,19.48205129,179.82,179.81,40.1]
[1755589186834,20.06205129,179.82,179.81,40.1]
[1755589187118,20.06205129,179.82,179.81,0.06]
[1755589188421,10.0,179.8,179.79,0.06]
[1755589188621,19.48205129,179.8,179.79,0.06]
[1755589188830,20.06205129,179.8,179.79,0.06]
[1755589189122,10.0,179.78,179.77,40.12]
[1755589189427,19.48205129,179.78,179.77,40.12]
[1755589190398,10.0,179.78,179.77,46.4026634]
[1755589190905,19.48205129,179.78,179.77,40.12]
[1755589191529,10.0,179.78,179.77,40.12]
[1755589191708,19.48205129,179.78,179.77,40.12]
[1755589191904,10.0,179.78,179.77,40.12]
[1755589192101,19.48205129,179.78,179.77,40.12]
[1755589193410,20.06205129,179.78,179.77,40.12]
[1755589193612,19.48205129,179.78,179.77,0.06]
[1755589197046,19.48205129,179.78,179.77,0.78]
[1755589197047,10.0,179.78,179.77,0.78]
[1755589197414,19.48205129,179.78,179.77,0.78]
[1755589197736,19.48205129,179.78,179.77,0.06]
[1755589198735,10.0,179.78,179.77,0.06]
[1755589199130,10.0,179.78,179.77,0.78]
[1755589199632,10.0,179.79,179.78,15.10621557]
[1755589199840,10.0,179.79,179.78,64.58826686]
[1755589200139,10.0,179.79,179.78,40.0]
[1755589200637,10.0,179.79,179.78,65.30826686]
[1755589201017,10.0,179.79,179.78,70.87062084]
[1755589201644,10.0,179.79,179.78,40.0]
[1755589201820,10.0,179.78,179.77,0.06]
[1755589202019,20.61782297,179.78,179.77,0.06]
[1755589202335,10.0,179.78,179.77,0.06]
[1755589202530,19.48205129,179.78,179.77,0.06]
[1755589203135,10.0,179.78,179.77,0.06]
[1755589203440,10.0,179.78,179.77,50.32205129]
[1755589203747,10.0,179.78,179.77,65.42826686]
[1755589204815,19.48205129,179.81,179.77,0.06]
[1755589205021,10.0,179.78,179.77,40.18]
[1755589205342,10.0,179.78,179.77,71.05093026]
[1755589205756,10.0,179.81,179.78,15.10621557]
[1755589206041,10.0,179.81,179.8,9.48205129]
[1755589206230,10.0,179.81,179.8,40.12]
[1755589206442,10.0,179.78,179.77,0.06]
[1755589206623,10.0,179.78,179.77,40.22]
[1755589206821,10.0,179.78,179.77,55.98471469]
[1755589207021,10.0,179.78,179.77,71.09093026]
[1755589207818,10.0,179.79,179.78,15.10621557]
[1755589208022,10.0,179.81,179.78,25.23826686]
[1755589208313,10.0,179.81,179.8,9.48205129]
[1755589208544,10.0,179.81,179.8,10.13205129]
[1755589208841,10.0,179.85,179.81,15.10621557]
[1755589209048,10.0,179.86,179.85,15.10621557]
[1755589209229,10.03,179.87,179.85,70.9784559]
[1755589209431,10.0,179.86,179.85,61.49640461]
[1755589210734,10.03,179.87,179.85,70.9784559]
[1755589210940,0.03,179.87,179.86,10.13205129]
[1755589211338,10.03,179.87,179.86,30.79814676]
[1755589211540,0.03,179.87,179.86,30.79814676]
[1755589212023,10.03,179.87,179.86,30.79814676]
[1755589212541,10.0,179.86,179.85,55.28621557]
[1755589212839,10.0,179.86,179.85,40.18]
[1755589213446,10.0,179.84,179.81,5.56137089]
[1755589213627,10.0,179.82,179.81,20.66758646]
[1755589213832,10.0,179.82,179.81,60.82758646]
[1755589214563,10.0,179.83,179.81,60.82758646]
[1755589214733,10.0,179.83,179.82,30.79938353]
[1755589215254,10.0,179.84,179.82,30.79938353]
[1755589215423,10.0,179.83,179.82,20.66733224]
[1755589215622,10.0,179.83,179.82,60.82733224]
[1755589216023,10.0,179.83,179.82,61.47733224]
[1755589216456,10.0,179.84,179.82,61.47733224]
[1755589216763,10.0,179.85,179.84,20.66671379]
[1755589216947,10.0,179.85,179.84,71.09876508]
[1755589217275,0.03,179.87,179.84,71.09876508]
[1755589217439,0.03,179.87,179.86,9.48205129]
[1755589217757,10.03,179.87,179.86,55.44621557]
[1755589217971,10.03,179.87,179.86,40.34]
[1755589218352,10.03,179.87,179.86,49.82205129]
[1755589218656,0.03,179.87,179.86,56.03193119]
[1755589218818,10.03,179.87,179.86,40.34]
[1755589219022,0.03,179.87,179.86,49.82205129]
[1755589219235,10.03,179.87,179.86,50.47205129]
[1755589220552,10.03,179.87,179.86,40.34]
[1755589220748,10.03,179.87,179.86,49.82205129]
[1755589221648,10.03,179.87,179.86,56.03193119]
[1755589222151,10.03,179.87,179.86,49.82205129]
[1755589222757,10.61,179.87,179.86,40.3]
[1755589222925,20.09205129,179.87,179.86,40.3]
[1755589223246,10.61,179.87,179.86,40.3]
[1755589224349,20.64782297,179.87,179.86,40.3]
[1755589224650,20.09205129,179.87,179.86,40.3]
[1755589225639,20.64782297,179.87,179.86,40.3]
[1755589226157,10.03,179.87,179.86,40.3]
[1755589227232,10.03,179.87,179.86,40.95]
[1755589227452,10.03,179.87,179.86,55.99193119]
[1755589227648,10.03,179.87,179.86,46.5098799]
[1755589227945,19.51205129,179.87,179.86,40.3]
[1755589228553,10.03,179.87,179.86,40.3]
[1755589229130,10.03,179.87,179.86,50.43205129]
[1755589229338,10.03,179.87,179.86,55.99193119]
[1755589229954,10.03,179.87,179.86,61.61609547]
[1755589230261,10.03,179.87,179.86,71.09814676]
[1755589230865,0.03,179.87,179.86,71.09814676]
[1755589231033,10.03,179.87,179.86,71.09814676]
[1755589232256,10.03,179.87,179.86,61.61609547]
[1755589232424,10.03,179.87,179.86,71.09814676]
[1755589232626,10.03,179.87,179.86,40.3]
[1755589233858,19.51205129,179.87,179.86,40.3]
[1755589234034,20.09205129,179.87,179.86,40.3]
[1755589234232,10.03,179.87,179.86,40.3]
[1755589234432,10.03,179.87,179.86,40.95]
[1755589234842,10.03,179.87,179.86,40.3]
[1755589235984,10.03,179.87,179.86,40.95]
[1755589236561,10.03,179.87,179.86,71.09814676]
[1755589239562,10.03,179.87,179.86,70.44814676]
[1755589239758,10.03,179.87,179.86,65.55826686]
[1755589240144,10.03,179.87,179.86,71.11814676]
[1755589241267,10.03,179.87,179.86,40.3]
[1755589241452,10.03,179.87,179.86,40.2]
[1755589242852,20.09205129,179.87,179.86,40.2]
[1755589243039,19.51205129,179.87,179.86,40.2]
[1755589243390,10.0,179.82,179.8,0.67]
[1755589243577,10.0,179.82,179.81,40.2]
[1755589243742,19.48205129,179.82,179.81,40.2]
[1755589244064,10.0,179.82,179.81,40.87]
[1755589244261,10.0,179.82,179.81,40.2]
[1755589245178,10.0,179.82,179.81,40.87]
[1755589245976,10.0,179.82,179.81,61.53764151]
[1755589246188,10.0,179.83,179.82,15.10621557]
[1755589246399,10.0,179.84,179.82,25.25826686]
[1755589246549,10.0,179.85,179.84,15.10621557]
[1755589246755,10.0,179.85,179.84,40.85]
[1755589246956,10.0,179.85,179.84,40.18]
[1755589247261,19.48205129,179.85,179.84,40.18]
[1755589247653,10.0,179.85,179.84,40.18]
[1755589248066,20.06205129,179.85,179.84,40.18]
[1755589248401,19.48205129,179.85,179.84,40.18]
[1755589248769,10.0,179.85,179.84,40.18]
[1755589249160,19.48205129,179.85,179.84,40.18]
[1755589249365,20.06205129,179.85,179.84,40.18]
[1755589250669,19.48205129,179.85,179.84,40.18]
[1755589250869,10.0,179.85,179.84,40.18]
[1755589251067,10.0,179.85,179.84,40.85]
[1755589251584,10.0,179.85,179.84,40.18]
[1755589251771,10.0,179.85,179.84,40.85]
[1755589252301,10.0,179.85,179.81,10.15205129]
[1755589252471,10.0,179.85,179.82,40.14]
[1755589252990,10.0,179.83,179.82,40.81]
[1755589254276,10.0,179.83,179.82,70.95938353]
[1755589254476,10.0,179.84,179.83,15.10621557]
[1755589254682,10.0,179.84,179.83,64.66826686]
[1755589255281,10.0,179.84,179.83,65.33826686]
[1755589255793,10.0,179.84,179.83,70.89907428]
[1755589256379,10.0,179.84,179.83,30.81907428]
[1755589256583,10.0,179.84,179.83,61.43702299]
[1755589257083,10.0,179.84,179.83,70.91907428]
[1755589257399,10.0,179.85,179.83,70.91907428]
[1755589257602,10.0,179.84,179.83,70.91907428]
[1755589258003,10.0,179.85,179.83,70.91907428]
[1755589258185,10.0,179.84,179.83,70.91907428]
[1755589258503,10.0,179.84,179.83,40.1]
[1755589258793,10.0,179.84,179.83,46.33080742]
[1755589259696,10.0,179.84,179.83,40.77]
[1755589259894,10.0,179.85,179.84,26.0]
[1755589260811,10.0,179.85,179.84,31.56049822]
[1755589261106,10.0,179.85,179.84,56.81876508]
[1755589261904,0.03,179.87,179.85,15.10621557]
[1755589262107,0.03,179.87,179.86,64.60826686]
[1755589262412,10.03,179.87,179.86,55.79621557]
[1755589262581,10.03,179.87,179.86,61.35609547]
[1755589262781,10.03,179.87,179.86,40.02]
[1755589263180,10.03,179.87,179.86,40.69]
[1755589263400,10.03,179.87,179.86,40.02]
[1755589265517,10.03,179.87,179.86,45.5798799]
[1755589265721,10.03,179.87,179.86,70.83814676]
[1755589266182,10.03,179.87,179.86,61.35609547]
[1755589266617,10.03,179.87,179.86,55.73193119]
[1755589266981,10.03,179.87,179.86,40.02]
[1755589267398,19.51205129,179.87,179.86,40.02]
[1755589267713,10.03,179.87,179.86,40.02]
[1755589268230,19.51205129,179.87,179.8,15.10621557]
[1755589268382,10.0,179.82,179.79,5.69985101]
[1755589268584,10.0,179.8,179.79,0.06]
[1755589268909,10.0,179.8,179.79,40.72]
[1755589269277,10.0,179.81,179.79,40.72]
[1755589269514,6.08172206,179.82,179.79,40.72]
[1755589269515,10.0,179.8,179.79,40.06]
[1755589270011,10.0,179.8,179.79,66.06]
[1755589270215,10.0,179.8,179.79,72.80172206]
[1755589270395,10.0,179.8,179.79,66.06]
[1755589271686,10.0,179.8,179.79,72.2820446]
[1755589272089,10.0,179.81,179.79,72.2820446]
[1755589272284,10.0,179.81,179.8,0.66]
[1755589272795,10.0,179.81,179.8,6.22173526]
[1755589273210,10.0,179.82,179.8,30.7889255]
[1755589273508,10.0,179.82,179.81,55.72621557]
[1755589274689,10.0,179.82,179.81,55.06621557]
[1755589275300,10.0,179.82,179.81,55.72621557]
[1755589275504,10.0,179.82,179.81,55.06621557]
[1755589275898,10.0,179.82,179.81,70.74861618]
[1755589276310,10.0,179.82,179.81,65.18719024]
[1755589276501,10.0,179.82,179.81,55.72621557]
[1755589276699,10.0,179.82,179.81,0.66]
[1755589276914,10.0,179.82,179.81,39.92]
[1755589277216,10.0,179.82,179.81,40.58]
[1755589277396,10.0,179.82,179.81,46.14142594]
[1755589277600,10.0,179.82,179.81,55.60240061]
[1755589278209,110.60883481,179.86,179.81,55.60240061]
[1755589278210,10.0,179.84,179.81,55.60240061]
[1755589278434,10.0,179.84,179.83,9.46097467]
[1755589278615,10.0,179.84,179.83,49.36097467]
[1755589278793,10.0,179.84,179.83,40.56]
[1755589279415,10.0,179.84,179.83,55.58178209]
[1755589280113,10.0,179.84,179.83,70.68799766]
[1755589280318,10.0,179.85,179.83,55.58178209]
[1755589280615,10.0,179.85,179.84,10.12097467]
[1755589280791,10.0,179.85,179.84,25.22719024]
[1755589281309,10.0,179.85,179.84,30.78768846]
[1755589285322,0.03,179.86,179.85,15.10621557]
[1755589285520,0.03,179.86,179.85,64.40719024]
[1755589285729,0.03,179.86,179.85,65.06719024]
[1755589286793,0.03,179.86,179.85,70.62737928]
[1755589286994,0.03,179.86,179.85,96.62737928]
[1755589292316,0.03,179.86,179.85,52.74214708]
[1755589292506,0.03,179.86,179.85,92.54214708]
[1755589293815,0.03,179.86,179.85,93.20214708]
[1755589295133,0.03,179.86,179.85,77.43593151]
[1755589295333,10.03,179.86,179.85,45.87574247]
[1755589296011,10.03,179.86,179.82,41.10621557]
[1755589296012,10.0,179.85,179.83,6.07574247]
[1755589296213,10.0,179.83,179.8,5.56169227]
[1755589296406,10.0,179.83,179.81,45.85574247]
[1755589296610,10.58,179.83,179.81,39.78]
[1755589296810,10.0,179.82,179.81,39.78]
[1755589298531,10.0,179.82,179.81,51.41716841]
[1755589299413,10.0,179.82,179.81,39.78]
[1755589299614,10.0,179.8,179.79,0.06]
[1755589299925,10.0,179.8,179.79,39.82]
[1755589300505,10.0,179.8,179.79,46.54574247]
[1755589300736,10.0,179.8,179.79,67.21400264]
[1755589300942,10.0,179.8,179.79,0.06]
[1755589301147,10.0,179.8,179.79,39.84]
[1755589301508,10.0,179.8,179.79,45.91574247]
[1755589302509,10.0,179.8,179.79,40.49]
[1755589302844,10.0,179.8,179.79,46.56574247]
[1755589303045,10.0,179.8,179.79,67.23400264]
[1755589305336,10.0,179.8,179.79,72.68523407]
[1755589307435,10.0,179.81,179.79,72.68523407]
[1755589307636,10.0,179.81,179.8,6.07574247]
[1755589307832,10.0,179.81,179.8,6.72574247]
[1755589308744,10.0,179.81,179.8,12.28747773]
[1755589309650,10.0,179.81,179.8,6.21173526]
[1755589309826,10.0,179.81,179.8,12.28747773]
[1755589310338,10.0,179.82,179.81,15.10621557]
[1755589310645,10.03,179.86,179.81,87.55195804]
[1755589310814,10.03,179.86,179.84,6.07574247]
[1755589311139,10.03,179.86,179.85,39.72]
[1755589311140,16.66151415,179.86,179.85,39.72]
[1755589311529,17.24151415,179.86,179.85,39.72]
[1755589312841,10.03,179.86,179.85,39.72]
[1755589314334,17.24151415,179.86,179.85,39.72]
[1755589317645,10.0,179.8,179.79,0.06]
[1755589317841,10.0,179.8,179.79,39.78]
[1755589319626,10.0,179.8,179.79,40.43]
[1755589319827,10.0,179.8,179.79,46.50574247]
[1755589320729,10.0,179.8,179.79,67.17400264]
[1755589321138,10.0,179.81,179.79,67.17400264]
[1755589321450,10.0,179.82,179.81,26.0]
[1755589321630,10.0,179.82,179.81,65.72]
[1755589321827,10.0,179.82,179.81,71.28142594]
[1755589322033,10.0,179.82,179.81,77.35716841]
[1755589322333,10.0,179.82,179.81,78.00716841]
[1755589322635,10.0,179.82,179.81,72.44574247]
[1755589322837,10.0,179.82,179.81,65.72]
[1755589323035,10.0,179.82,179.81,39.72]
[1755589324244,10.0,179.82,179.81,40.37]
[1755589325136,10.0,179.82,179.81,46.44574247]
[1755589325334,10.0,179.83,179.81,52.00716841]
[1755589325559,10.0,179.83,179.82,38.28685914]
[1755589325930,10.0,179.83,179.82,32.72574247]
[1755589326135,10.0,179.83,179.82,65.72]
[1755589326654,10.0,179.83,179.82,72.44574247]
[1755589326958,10.0,179.83,179.82,78.00685914]
[1755589327148,80.85621557,179.93,179.9,1604.01616553]
[1755589327348,10.2784805,179.91,179.9,1604.01616553]
[1755589328356,16.35422297,179.91,179.9,1604.01616553]
[1755589329173,10.79578816,179.91,179.9,1604.01616553]
[1755589329376,4.72004569,179.91,179.9,1604.01616553]
[1755589329534,0.58577168,179.91,179.9,1604.01616553]
[1755589331262,6.66151415,179.91,179.9,1604.01616553]
[1755589331856,0.58577168,179.91,179.9,1604.01616553]
[1755589332062,6.66151415,179.91,179.9,1604.01616553]
[1755589332842,16.35653052,179.91,179.9,1604.01616553]
[1755589333045,23.01804452,179.91,179.9,1604.01616553]
[1755589333845,38.12426009,179.91,179.9,1604.01616553]
[1755589338966,41.85477709,179.91,179.9,1604.01616553]
[1755589339269,41.86237342,179.91,179.9,1604.01616553]
[1755589339665,41.86369534,179.91,179.9,1604.01616553]
[1755589344959,37.71809544,179.91,179.9,1604.01616553]
[1755589345164,41.8651442,179.91,179.9,1604.01616553]
[1755589348081,41.86591626,179.91,179.9,1604.01616553]
[1755589348284,41.86591626,179.91,179.9,1604.07616553]
[1755589348493,41.86591626,179.91,179.9,1604.78616553]
[1755589348782,41.86685293,179.91,179.9,1604.07616553]
[1755589348955,41.86695188,179.91,179.9,1604.07616553]
[1755589351187,41.8670599,179.91,179.9,1604.07616553]
[1755589352371,41.86696183,179.91,179.9,1521.3719529]
[1755589352570,57.9427043,179.91,179.9,1451.75592817]
[1755589352892,59.64944899,179.91,179.9,1391.77398283]
[1755589353078,59.64944899,179.91,179.9,1362.63120225]
[1755589353283,59.64944899,179.91,179.9,1250.78420904]
[1755589353589,59.64944899,179.91,179.9,1211.59637976]
[1755589353891,59.64944899,179.91,179.9,1154.21182289]
[1755589354195,59.64944899,179.91,179.9,1071.26920856]
[1755589354375,59.64944899,179.91,179.9,999.75168294]
[1755589354573,59.64944899,179.91,179.9,927.45127217]
[1755589354972,59.64944899,179.91,179.9,882.80517128]
[1755589355175,59.64542717,179.91,179.9,816.99897848]
[1755589355392,59.64542717,179.91,179.9,745.48145286]
[1755589355588,59.64542717,179.91,179.9,703.07225515]
[1755589355968,59.64542717,179.91,179.9,660.64291974]
[1755589356169,59.64542717,179.91,179.9,629.40027134]
[1755589356493,59.64542717,179.91,179.9,435.40953112]
[1755589356684,59.64542717,179.91,179.9,385.61935884]
[1755589357063,55.5005826,179.91,179.9,347.5609962]
[1755589357305,59.64326813,179.91,179.9,188.37543973]
[1755589357466,59.64326813,179.91,179.9,150.77531938]
[1755589357803,59.64326813,179.91,179.9,139.92705895]
[1755589357987,59.64186628,179.91,179.9,128.74037194]
[1755589358163,15.10621557,179.85,179.84,0.06]
[1755589358367,65.59815237,179.85,179.84,0.06]
[1755589358586,75.59815237,179.85,179.84,0.06]
[1755589358781,82.32568837,179.85,179.84,0.06]
[1755589358995,92.32568837,179.85,179.84,0.06]